bitfinex-derivatives/quotes_BTCF0:USTF0_20240910
["timestamp","ask_amount","ask_price","bid_price","bid_amount"]
[1725977533272,0.088149,56719.0,56701.0,0.088176]
[1725977533575,0.088149,56719.0,56678.0,0.088213]
[1725977533576,0.38,56709.0,56687.0,1.9327]
[1725977533778,0.38,56714.0,56692.0,0.38]
[1725977533968,0.088142,56724.0,56697.0,0.38]
[1725977533969,0.38,56720.0,56697.0,0.38]
[1725977534364,0.088161,56712.0,56703.0,0.088172]
[1725977534571,0.38,56710.0,56693.0,0.088189]
[1725977534774,0.38,56710.0,56690.0,0.088194]
[1725977535073,0.13855509,56724.0,56692.0,0.08819]
[1725977535074,0.088179,56700.0,56692.0,0.08819]
[1725977535275,0.38,56705.0,56687.0,0.0527]
[1725977535474,0.088175,56703.0,56688.0,0.38]
[1725977535675,0.088176,56702.0,56688.0,0.38]
[1725977536076,0.4337,56709.0,56682.0,0.088206]
[1725977536077,0.088193,56691.0,56682.0,0.088206]
[1725977536278,0.38,56694.0,56678.0,0.088212]
[1725977536467,0.38,56694.0,56671.0,0.38]
[1725977536468,0.088197,56688.0,56671.0,0.38]
[1725977536667,0.38,56688.0,56677.0,0.088213]
[1725977536976,0.088204,56684.0,56678.0,0.088212]
[1725977537175,0.088195,56690.0,56671.0,0.39619926]
[1725977537379,0.088188,56694.0,56684.0,0.088203]
[1725977537578,0.08819,56693.0,56676.0,0.38]
[1725977537773,0.088192,56692.0,56676.0,0.38]
[1725977538078,0.38,56695.0,56682.0,0.088205]
[1725977538278,0.38,56695.0,56670.0,0.1045]
[1725977538279,0.38,56690.0,56677.0,0.088213]
[1725977538483,0.3218,56701.0,56670.0,0.01661692]
[1725977538484,0.088211,56680.0,56670.0,0.01661692]
[1725977538669,0.0526,56705.0,56671.0,0.38]
[1725977538670,0.7018,56690.0,56671.0,0.38]
[1725977539273,0.38,56690.0,56669.0,0.05191698]
[1725977539477,0.088202,56685.0,56671.0,0.38]
[1725977539871,0.38,56674.0,56666.0,0.05191698]
[1725977540178,0.38,56668.0,56659.0,0.00148]
[1725977540379,0.088213,56678.0,56660.0,0.38]
[1725977540575,0.0538,56684.0,56662.0,0.088238]
[1725977540576,0.088215,56677.0,56662.0,0.088238]
[1725977540776,0.0538,56684.0,56660.0,1.8814]
[1725977540984,0.088216,56677.0,56661.0,0.088239]
[1725977541374,0.0538,56684.0,56661.0,0.088239]
[1725977541574,0.0538,56684.0,56660.0,1.8814]
[1725977541575,0.38,56674.0,56660.0,1.5014]
[1725977541786,0.38,56668.0,56658.0,0.0166543]
[1725977541981,0.38,56668.0,56651.0,0.05191698]
[1725977541982,0.088233,56665.0,56651.0,0.05191698]
[1725977542180,0.08823,56667.0,56652.0,1.5]
[1725977542386,0.38,56673.0,56654.0,0.38]
[1725977542686,0.38,56668.0,56652.0,1.5014]
[1725977542988,0.38,56663.0,56651.0,0.01647495]
[1725977543281,0.38,56663.0,56648.0,0.0538]
[1725977544079,0.38,56658.0,56650.0,0.088255]
[1725977544389,0.053,56683.0,56652.0,0.088253]
[1725977544390,0.38,56663.0,56652.0,0.088253]
[1725977545082,0.38,56663.0,56648.0,0.15796966]
[1725977545283,0.38,56663.0,56648.0,0.06971066]
[1725977545591,0.38,56663.0,56650.0,0.088255]
[1725977546184,0.38,56665.0,56648.0,0.06971066]
[1725977546378,0.38,56665.0,56653.0,0.088251]
[1725977546580,0.0176,56688.0,56648.0,0.44971066]
[1725977546581,0.38,56670.0,56648.0,0.44971066]
[1725977546776,0.38,56674.0,56660.0,0.08824]
[1725977547178,0.38,56674.0,56662.0,0.088236]
[1725977547578,0.38,56674.0,56653.0,0.38]
[1725977547785,0.38,56674.0,56653.0,0.3966569]
[1725977547986,0.38,56674.0,56654.0,0.088249]
[1725977548380,0.38,56674.0,56653.0,0.3966569]
[1725977548590,0.38,56665.0,56653.0,0.0166569]
[1725977548788,0.38,56670.0,56659.0,0.088241]
[1725977549084,0.0538,56684.0,56660.0,1.5]
[1725977549085,0.38,56680.0,56660.0,1.5]
[1725977549389,0.38,56680.0,56670.0,0.088225]
[1725977549687,0.088194,56691.0,56660.0,1.5]
[1725977549688,0.38,56685.0,56663.0,0.38]
[1725977549884,0.38,56685.0,56674.0,0.088218]
[1725977550078,0.38,56685.0,56664.0,0.088234]
[1725977550388,0.07093327,56697.0,56664.0,0.088234]
[1725977550389,0.0544,56697.0,56679.0,0.38]
[1725977550585,0.0544,56697.0,56664.0,0.0526]
[1725977550586,0.468185,56696.0,56673.0,0.38]
[1725977550888,0.38,56696.0,56682.0,0.088205]
[1725977551090,0.38,56696.0,56674.0,0.0516]
[1725977551290,0.38,56696.0,56674.0,0.06026837]
[1725977551494,0.38,56696.0,56687.0,0.088198]
[1725977551992,0.38,56696.0,56674.0,0.06026837]
[1725977552179,0.38,56696.0,56675.0,1.5]
[1725977552379,0.38,56698.0,56679.0,0.38]
[1725977552582,0.38,56698.0,56675.0,1.5014]
[1725977552797,0.38,56698.0,56687.0,0.088198]
[1725977553092,0.38,56698.0,56679.0,0.38]
[1725977553281,0.38,56698.0,56686.0,0.088199]
[1725977553487,0.3218,56700.0,56679.0,0.38]
[1725977553488,0.409979,56700.0,56679.0,0.38]
[1725977553684,0.409979,56700.0,56675.0,1.51806056]
[1725977553685,0.38,56698.0,56675.0,1.51806056]
[1725977553987,0.468182,56698.0,56683.0,0.088204]
[1725977554189,0.468182,56698.0,56686.0,0.0882]
[1725977554491,0.38,56698.0,56686.0,0.0882]
[1725977554681,0.38,56698.0,56678.0,0.38]
[1725977554887,0.38,56697.0,56678.0,0.38]
[1725977555085,0.38,56692.0,56683.0,0.088204]
[1725977555389,0.38,56692.0,56675.0,1.51806056]
[1725977555390,0.38,56692.0,56684.0,0.088203]
[1725977555587,0.38,56692.0,56685.0,0.088201]
[1725977555786,0.38,56698.0,56678.0,0.38]
[1725977556088,0.3218,56700.0,56684.0,0.38]
[1725977556279,0.3218,56707.0,56689.0,0.38]
[1725977556690,0.3218,56707.0,56689.0,0.468195]
[1725977556691,0.00104001,56704.0,56689.0,0.468195]
[1725977556894,0.00104001,56704.0,56689.0,0.38]
[1725977557085,0.3218,56707.0,56677.0,0.05191698]
[1725977557086,0.3218,56707.0,56694.0,0.38]
[1725977557291,0.3218,56707.0,56674.0,0.06026837]
[1725977557292,0.3218,56715.0,56700.0,0.088178]
[1725977557586,0.3218,56715.0,56695.0,0.1017]
[1725977557587,0.3218,56715.0,56714.0,0.088157]
[1725977557786,0.38,56725.0,56712.0,0.088159]
[1725977557990,0.38,56725.0,56706.0,0.38]
[1725977558383,0.465033,56729.0,56707.0,1.5]
[1725977558588,0.468138,56726.0,56707.0,1.5]
[1725977558789,0.38,56721.0,56707.0,1.5]
[1725977558991,0.088148,56720.0,56707.0,1.5]
[1725977559195,0.38,56721.0,56707.0,1.5]
[1725977559392,0.08814,56725.0,56707.0,1.88]
[1725977559694,0.38,56726.0,56707.0,1.88]
[1725977560090,0.409934,56729.0,56707.0,1.88]
[1725977560091,0.3218,56729.0,56723.0,0.088142]
[1725977560293,0.4351,56732.0,56716.0,0.088152]
[1725977560294,0.38,56727.0,56716.0,0.088152]
[1725977560592,0.38,56727.0,56707.0,1.5]
[1725977560593,0.38,56727.0,56713.0,0.088158]
[1725977560791,0.0551,56732.0,56710.0,0.088162]
[1725977560792,0.088149,56720.0,56710.0,0.088162]
[1725977560996,0.088151,56718.0,56707.0,1.5]
[1725977561199,0.38,56716.0,56709.0,0.088164]
[1725977561386,0.38,56716.0,56694.0,0.05191698]
[1725977561387,0.38,56716.0,56702.0,0.088174]
[1725977561591,0.088161,56712.0,56703.0,0.088172]
[1725977561897,0.088161,56712.0,56704.0,0.088172]
[1725977562087,0.38092,56716.0,56704.0,0.088172]
[1725977562399,0.468162,56711.0,56687.0,0.38]
[1725977562691,0.38,56711.0,56692.0,0.38]
[1725977562893,0.3218,56714.0,56697.0,0.38]
[1725977563284,0.3218,56714.0,56713.0,0.088158]
[1725977563483,0.38092,56721.0,56703.0,0.38]
[1725977563484,0.00092,56721.0,56703.0,0.38]
[1725977563697,0.38,56726.0,56708.0,0.38]
[1725977563698,0.38104001,56726.0,56708.0,0.38]
[1725977563991,0.3218,56728.0,56713.0,0.38]
[1725977564194,0.468131,56731.0,56713.0,0.38]
[1725977564396,0.468131,56731.0,56722.0,0.088144]
[1725977564596,0.468131,56731.0,56713.0,0.38]
[1725977564597,0.468131,56731.0,56723.0,0.088143]
[1725977564797,0.46917101,56731.0,56723.0,0.088143]
[1725977565094,0.088135,56729.0,56716.0,0.01585542]
[1725977565289,0.38,56731.0,56722.0,0.088144]
[1725977565490,0.38,56731.0,56713.0,0.38]
[1725977565491,0.0551,56732.0,56714.0,0.088157]
[1725977565792,1.2545,56736.0,56726.0,0.088138]
[1725977565994,1.2545,56736.0,56713.0,0.3965267]
[1725977566195,0.38,56731.0,56713.0,0.3965267]
[1725977566400,0.08814,56725.0,56716.0,0.088152]
[1725977566894,0.088149,56719.0,56712.0,0.08816]
[1725977567098,0.088151,56718.0,56713.0,0.088157]
[1725977567297,0.38,56721.0,56715.0,0.088155]
[1725977567697,0.38,56721.0,56702.0,0.468175]
[1725977567698,0.08814,56725.0,56705.0,0.00880361]
[1725977567892,0.08814,56725.0,56702.0,0.468175]
[1725977567893,0.38,56726.0,56706.0,0.38]
[1725977568088,0.088146,56721.0,56706.0,0.38]
[1725977568301,0.088151,56718.0,56702.0,0.01659496]
[1725977568500,0.088161,56712.0,56693.0,0.0996]
[1725977568888,0.088163,56711.0,56693.0,0.0996]
[1725977569200,0.38,56716.0,56693.0,0.0996]
[1725977569201,0.38,56716.0,56696.0,0.468184]
[1725977569497,0.088155,56715.0,56705.0,0.08817]
[1725977569700,0.38,56716.0,56706.0,0.088169]
[1725977570201,0.38,56716.0,56696.0,0.468184]
[1725977570202,0.088174,56703.0,56698.0,0.088181]
[1725977570397,0.38,56707.0,56700.0,0.088177]
[1725977570596,0.046,56717.0,56702.0,0.088175]
[1725977570597,0.088166,56708.0,56702.0,0.088175]
[1725977571004,0.088166,56708.0,56703.0,0.088174]
[1725977571301,0.088166,56708.0,56689.0,0.088195]
[1725977571302,0.38,56708.0,56687.0,0.38]
[1725977571502,0.38,56708.0,56699.0,0.08818]
[1725977571697,0.08817,56706.0,56699.0,0.08818]
[1725977572502,0.08817,56706.0,56687.0,0.38]
[1725977572704,0.00092,56708.0,56692.0,0.38]
[1725977572903,0.088161,56712.0,56688.0,0.088197]
[1725977572904,0.088161,56712.0,56706.0,0.088168]
[1725977573101,0.088154,56716.0,56698.0,0.088182]
[1725977573401,0.046,56717.0,56697.0,0.38]
[1725977573605,0.089231,56718.0,56714.0,0.088156]
[1725977573796,0.38092,56728.0,56707.0,0.38]
[1725977573993,0.8745,56742.0,56703.0,0.0087107]
[1725977573994,0.38,56733.0,56712.0,0.38]
[1725977574200,0.0088,56741.0,56731.0,0.08813]
[1725977574201,0.001,56737.0,56731.0,0.08813]
[1725977574400,0.001,56737.0,56718.0,0.46815]
[1725977574401,0.001,56737.0,56729.0,0.088133]
[1725977574705,0.00096001,56737.0,56724.0,0.088141]
[1725977574905,0.38,56734.0,56719.0,0.088148]
[1725977575102,0.38,56724.0,56714.0,0.088155]
[1725977575304,0.088119,56739.0,56704.0,0.09761698]
[1725977575305,0.38,56718.0,56704.0,0.09761698]
[1725977575497,0.468151,56718.0,56705.0,1.5]
[1725977575697,0.468151,56718.0,56708.0,0.088165]
[1725977575698,0.088157,56714.0,56708.0,0.088165]
[1725977576005,0.088125,56735.0,56704.0,0.088172]
[1725977576006,0.088152,56717.0,56704.0,0.088172]
[1725977576208,0.088152,56717.0,56703.0,0.06595651]
[1725977576504,0.38,56723.0,56703.0,0.06595651]
[1725977576505,0.088146,56721.0,56704.0,1.55191698]
[1725977576807,0.088143,56724.0,56716.0,0.088153]
[1725977577003,0.088143,56724.0,56708.0,0.43191698]
[1725977577004,0.088143,56724.0,56709.0,0.05191698]
[1725977577494,0.088143,56724.0,56710.0,0.05191698]
[1725977577694,0.38,56728.0,56710.0,0.05191698]
[1725977577907,0.01648577,56737.0,56710.0,0.05191698]
[1725977577908,0.38,56734.0,56713.0,0.38]
[1725977578205,0.088134,56729.0,56721.0,0.088146]
[1725977578408,0.088134,56729.0,56713.0,0.43191698]
[1725977578409,0.38,56734.0,56714.0,0.05191698]
[1725977578596,0.38,56734.0,56716.0,0.05191698]
[1725977578798,0.38,56734.0,56710.0,0.1364979]
[1725977578799,0.468118,56739.0,56720.0,0.05191698]
[1725977579008,0.38,56744.0,56723.0,0.38]
[1725977579196,0.38,56744.0,56727.0,0.05191698]
[1725977579399,0.46811,56744.0,56728.0,0.05191698]
[1725977579709,0.468111,56744.0,56738.0,0.088119]
[1725977579905,0.088121,56737.0,56729.0,0.088133]
[1725977580205,0.90872,56744.0,56734.0,0.088125]
[1725977580206,0.08907001,56744.0,56734.0,0.088125]
[1725977580400,0.088107,56746.0,56731.0,0.05191698]
[1725977580600,0.088106,56747.0,56737.0,0.08812]
[1725977580804,0.088109,56745.0,56738.0,0.088119]
[1725977581104,0.001,56749.0,56736.0,0.05191698]
[1725977581309,0.088098,56752.0,56744.0,0.08811]
[1725977581606,0.38,56754.0,56739.0,0.088118]
[1725977581913,0.088102,56749.0,56742.0,0.05191698]
[1725977582101,0.468095,56754.0,56741.0,0.05191698]
[1725977582304,0.0881,56751.0,56742.0,0.05191698]
[1725977582607,0.38,56754.0,56744.0,0.05191698]
[1725977583105,0.088098,56753.0,56742.0,0.05191698]
[1725977583312,0.38,56754.0,56743.0,0.05191698]
[1725977583604,0.088112,56743.0,56733.0,0.088126]
[1725977583803,0.07295227,56753.0,56731.0,0.01653321]
[1725977583804,0.10114593,56747.0,56731.0,0.01653321]
[1725977584004,0.02857195,56746.0,56730.0,0.38]
[1725977584207,0.48114593,56749.0,56730.0,0.38]
[1725977584400,0.02857136,56748.0,56735.0,0.088124]
[1725977584824,0.38,56743.0,56729.0,0.01620183]
[1725977585108,0.10114593,56746.0,56724.0,0.38]
[1725977585302,0.088111,56744.0,56736.0,0.088122]
[1725977585496,0.088111,56744.0,56737.0,0.08812]
[1725977585807,0.088125,56735.0,56728.0,0.088134]
[1725977586009,0.468113,56743.0,56723.0,0.38]
[1725977586308,0.088119,56739.0,56723.0,0.38]
[1725977586808,0.088119,56739.0,56733.0,0.088127]
[1725977587008,0.00092,56743.0,56728.0,0.38]
[1725977587208,0.088112,56743.0,56728.0,0.38]
[1725977587600,0.14694593,56747.0,56732.0,0.088128]
[1725977587799,0.14694593,56747.0,56728.0,0.38]
[1725977587800,0.088116,56741.0,56735.0,0.088124]
[1725977587996,0.381,56748.0,56738.0,0.38]
[1725977587997,0.001,56748.0,56738.0,0.38]
[1725977588206,0.3218,56750.0,56746.0,0.38]
[1725977588403,0.3218,56750.0,56749.0,0.088102]
[1725977588603,0.53752,56756.0,56750.0,0.088099]
[1725977588604,0.00092,56756.0,56750.0,0.088099]
[1725977588907,0.3218,56764.0,56752.0,0.38]
[1725977589112,0.87542,56766.0,56735.0,0.0494]
[1725977589113,0.87634,56766.0,56757.0,0.38]
[1725977589409,0.32284001,56773.0,56762.0,0.38]
[1725977589604,0.32284001,56773.0,56757.0,0.088088]
[1725977589605,0.3218,56773.0,56764.0,0.38]
[1725977589809,0.088064,56774.0,56765.0,0.088077]
[1725977590005,0.87546001,56781.0,56766.0,0.088076]
[1725977590006,1.343633,56781.0,56766.0,0.088076]
[1725977590313,0.088065,56774.0,56766.0,0.088076]
[1725977590511,0.088065,56774.0,56767.0,0.088074]
[1725977591004,1.25542,56781.0,56769.0,0.088071]
[1725977591309,1.2545,56781.0,56758.0,0.4767]
[1725977591508,0.38,56777.0,56759.0,0.088087]
[1725977591706,0.38,56777.0,56758.0,0.0967]
[1725977591910,1.25542,56781.0,56763.0,0.38]
[1725977592100,1.2545,56781.0,56763.0,0.38]
[1725977592303,0.088062,56775.0,56763.0,0.38]
[1725977592605,1.25542,56781.0,56763.0,0.38]
[1725977592798,1.2545,56781.0,56765.0,0.088077]
[1725977592998,0.38,56777.0,56758.0,0.4767]
[1725977593203,0.38,56777.0,56760.0,0.088085]
[1725977593405,0.38,56782.0,56758.0,0.4767]
[1725977593605,0.088065,56774.0,56766.0,0.088076]
[1725977593800,0.38,56782.0,56754.0,1.5014]
[1725977593801,0.468069,56771.0,56754.0,1.5014]
[1725977594000,0.3218,56783.0,56751.0,0.088099]
[1725977594001,0.38,56767.0,56751.0,0.088099]
[1725977594216,0.088091,56757.0,56745.0,0.06334515]
[1725977594404,0.088083,56762.0,56745.0,0.06334515]
[1725977594718,0.088078,56765.0,56750.0,0.38]
[1725977594917,0.38,56776.0,56755.0,0.38]
[1725977595111,0.088079,56764.0,56758.0,0.088088]
[1725977595409,0.088075,56767.0,56760.0,0.088084]
[1725977595604,0.088081,56763.0,56755.0,0.088093]
[1725977595803,0.38,56771.0,56750.0,0.38]
[1725977595804,0.38108,56771.0,56751.0,0.088099]
[1725977596012,0.38,56766.0,56752.0,0.088097]
[1725977596206,0.38,56766.0,56745.0,0.44341821]
[1725977596402,0.38,56765.0,56745.0,0.44341821]
[1725977596806,0.33793278,56774.0,56745.0,0.15152521]
[1725977596807,0.088097,56753.0,56745.0,0.15152521]
[1725977597008,0.088098,56752.0,56745.0,0.10472521]
[1725977597208,0.088102,56750.0,56740.0,0.38]
[1725977597518,0.381,56761.0,56745.0,0.088109]
[1725977597817,0.088096,56754.0,56745.0,0.088109]
[1725977598010,0.088096,56754.0,56740.0,0.39631786]
[1725977598011,0.00092,56761.0,56749.0,0.38]
[1725977598209,0.00092,56761.0,56740.0,0.01631786]
[1725977598210,0.088081,56763.0,56755.0,0.088093]
[1725977598411,0.088081,56763.0,56756.0,0.088091]
[1725977598605,0.088087,56759.0,56752.0,0.088098]
[1725977598807,0.38,56756.0,56738.0,0.05191698]
[1725977599007,0.38,56743.0,56730.0,0.088132]
[1725977599209,0.38,56748.0,56728.0,0.38]
[1725977599518,0.088106,56747.0,56729.0,1.5]
[1725977599716,0.38,56748.0,56727.0,0.10473422]
[1725977599924,0.088131,56731.0,56723.0,0.05191698]
[1725977600110,0.088131,56731.0,56720.0,0.0478]
[1725977600111,0.38,56733.0,56720.0,0.0478]
[1725977600306,0.38,56733.0,56717.0,0.088152]
[1725977600511,0.38,56728.0,56712.0,0.088159]
[1725977600817,0.08813,56731.0,56717.0,0.38]
[1725977601022,0.0452,56737.0,56711.0,0.52007798]
[1725977601023,0.088143,56723.0,56711.0,0.52007798]
[1725977601317,0.38,56729.0,56711.0,0.38]
[1725977601515,0.38,56729.0,56709.0,0.088164]
[1725977601716,0.38,56718.0,56704.0,0.088172]
[1725977602016,0.38,56713.0,56700.0,0.05191698]
[1725977602219,0.38,56713.0,56697.0,0.15788255]
[1725977602220,0.088166,56708.0,56697.0,0.14009898]
[1725977602422,0.088166,56708.0,56695.0,0.05191698]
[1725977602423,0.38,56708.0,56695.0,0.05191698]
[1725977602606,0.38,56708.0,56692.0,0.15789155]
[1725977602607,0.38,56708.0,56693.0,0.05191698]
[1725977602811,0.088175,56703.0,56692.0,0.05191698]
[1725977603009,0.088175,56703.0,56688.0,0.06970055]
[1725977603010,0.088169,56706.0,56691.0,0.38]
[1725977603213,0.088169,56706.0,56693.0,0.088189]
[1725977603409,0.38,56703.0,56690.0,0.05191698]
[1725977603612,0.08818,56699.0,56687.0,0.10101698]
[1725977603819,0.38,56708.0,56688.0,0.05191698]
[1725977604019,0.38,56718.0,56695.0,0.38]
[1725977604215,0.38,56718.0,56701.0,0.38]
[1725977605218,0.088164,56710.0,56696.0,0.38]
[1725977605425,0.088164,56710.0,56699.0,0.08818]
[1725977605624,0.088153,56717.0,56702.0,0.088174]
[1725977605814,0.088154,56716.0,56702.0,0.088174]
[1725977606214,0.38,56708.0,56690.0,0.52011098]
[1725977606519,0.088178,56701.0,56686.0,0.05191698]
[1725977606725,0.38,56703.0,56686.0,0.05191698]
[1725977606726,0.00096001,56703.0,56692.0,0.14010698]
[1725977607021,0.00092,56709.0,56695.0,0.088186]
[1725977607345,0.088166,56708.0,56696.0,0.088185]
[1725977607717,0.088166,56708.0,56692.0,1.55191698]
[1725977607718,0.088157,56714.0,56699.0,0.38]
[1725977607918,0.3218,56722.0,56708.0,0.088166]
[1725977608120,0.38,56720.0,56703.0,0.088174]
[1725977608316,0.088157,56714.0,56703.0,0.088174]
[1725977608518,0.38,56720.0,56703.0,0.088174]
[1725977608915,0.38,56715.0,56698.0,0.14009798]
[1725977609114,0.38,56715.0,56694.0,0.38]
[1725977609115,0.38,56715.0,56699.0,0.08818]
[1725977609315,0.38,56715.0,56691.0,0.10369697]
[1725977609316,0.38,56709.0,56690.0,0.05191698]
[1725977609518,0.38,56709.0,56691.0,0.088192]
[1725977609826,0.38,56709.0,56689.0,0.05191698]
[1725977610129,0.088107,56747.0,56705.0,0.38]
[1725977610130,0.01647647,56718.0,56705.0,0.38]
[1725977610331,0.38,56718.0,56707.0,0.088167]
[1725977610527,0.38,56718.0,56700.0,0.05191698]
[1725977610831,0.088131,56731.0,56694.0,0.047]
[1725977610832,0.088175,56703.0,56694.0,0.05191698]
[1725977611025,0.088179,56700.0,56693.0,0.088189]
[1725977611217,0.38,56700.0,56688.0,0.088196]
[1725977611420,0.0457,56717.0,56691.0,0.088192]
[1725977611421,0.38,56706.0,56691.0,0.088192]
[1725977611919,0.088184,56697.0,56691.0,0.088192]
[1725977612119,0.088184,56697.0,56685.0,0.38]
[1725977612120,0.088185,56697.0,56685.0,0.38]
[1725977612527,0.38,56706.0,56691.0,0.088192]
[1725977612719,0.088178,56701.0,56690.0,0.38]
[1725977612919,0.38,56711.0,56690.0,0.38]
[1725977612920,0.08818,56699.0,56693.0,0.088188]
[1725977613124,0.088196,56689.0,56683.0,0.088205]
[1725977613323,0.088196,56689.0,56674.0,0.05191698]
[1725977613324,0.088199,56687.0,56674.0,0.05191698]
[1725977613521,0.38,56694.0,56673.0,0.38]
[1725977613828,0.3218,56710.0,56684.0,0.088202]
[1725977613829,0.38,56705.0,56684.0,0.088202]
[1725977614029,0.38,56695.0,56674.0,0.38]
[1725977614223,0.088192,56692.0,56679.0,0.38]
[1725977614423,0.00096001,56695.0,56683.0,0.38]
[1725977614631,0.38,56705.0,56683.0,0.38]
[1725977614845,0.10423188,56709.0,56671.0,0.088223]
[1725977614846,0.088182,56698.0,56681.0,0.088208]
[1725977615030,0.10423188,56709.0,56669.0,0.0476]
[1725977615031,0.38,56695.0,56673.0,0.38]
[1725977615336,0.088189,56693.0,56680.0,0.088209]
[1725977615520,0.38,56695.0,56681.0,0.088208]
[1725977615718,0.468179,56700.0,56678.0,0.38]
[1725977615925,0.00108,56695.0,56684.0,0.088203]
[1725977616228,0.38,56700.0,56678.0,0.38]
[1725977616229,0.088182,56698.0,56678.0,0.38]
[1725977616626,0.38,56700.0,56684.0,0.088203]
[1725977616828,0.38,56700.0,56669.0,0.135827]
[1725977616829,0.38,56690.0,56673.0,0.38]
[1725977617422,0.468194,56690.0,56673.0,0.38]
[1725977617628,0.468187,56695.0,56684.0,0.088203]
[1725977617837,0.088191,56692.0,56678.0,0.38]
[1725977618030,0.468187,56695.0,56678.0,0.38]
[1725977618227,0.308189,56694.0,56682.0,0.088206]
[1725977618430,0.088192,56692.0,56677.0,0.308213]
[1725977618635,0.088192,56692.0,56666.0,0.08823]
[1725977618636,0.22,56689.0,56682.0,0.088206]
[1725977618925,0.308189,56694.0,56685.0,0.088202]
[1725977619121,0.22,56694.0,56677.0,0.22]
[1725977619329,0.22,56694.0,56687.0,0.088198]
[1725977619536,0.22,56694.0,56688.0,0.088196]
[1725977620034,0.22,56694.0,56693.0,0.088189]
[1725977620229,0.22,56694.0,56688.0,0.088196]
[1725977620431,0.22,56694.0,56662.0,0.05191698]
[1725977620432,0.22,56689.0,56668.0,0.22]
[1725977620635,0.22,56681.0,56664.0,1.51665234]
[1725977620830,0.22,56681.0,56666.0,0.08823]
[1725977621033,0.22,56681.0,56659.0,0.0452]
[1725977621034,0.22,56667.0,56651.0,0.088254]
[1725977621238,0.22,56658.0,56657.0,0.088245]
[1725977621532,0.22,56658.0,56648.0,0.00172]
[1725977621727,0.088216,56676.0,56651.0,0.088254]
[1725977621728,0.22,56653.0,56651.0,0.088254]
[1725977621925,0.22,56653.0,56652.0,0.088253]
[1725977622125,0.22,56666.0,56662.0,0.088237]
[1725977622329,0.22,56666.0,56647.0,0.22]
[1725977622330,0.52944,56665.0,56648.0,0.088259]
[1725977622540,0.00871184,56671.0,56650.0,0.088256]
[1725977622541,0.22,56667.0,56650.0,0.088256]
[1725977622732,0.22,56667.0,56652.0,0.22]
[1725977622932,0.22,56671.0,56653.0,0.0461]
[1725977623237,0.00884432,56675.0,56674.0,0.088219]
[1725977623534,0.22,56676.0,56675.0,0.088217]
[1725977623732,0.22,56676.0,56656.0,0.32448944]
[1725977623932,0.22,56667.0,56654.0,0.0495]
[1725977624236,0.38,56663.0,56643.0,0.38]
[1725977624435,0.38,56663.0,56644.0,1.5]
[1725977624635,0.38,56663.0,56651.0,0.088254]
[1725977625032,0.38,56663.0,56653.0,0.088251]
[1725977625235,0.38,56661.0,56649.0,0.088258]
[1725977625536,0.088249,56655.0,56649.0,0.088258]
[1725977625734,0.38,56652.0,56637.0,0.051]
[1725977626035,0.088237,56663.0,56644.0,0.38]
[1725977626235,0.38,56666.0,56652.0,0.088252]
[1725977626434,0.0467,56671.0,56639.0,0.088273]
[1725977626435,0.46825,56655.0,56645.0,0.088264]
[1725977626638,0.38,56655.0,56639.0,0.38]
[1725977626838,0.38,56660.0,56639.0,0.38]
[1725977627037,0.088236,56663.0,56644.0,0.38]
[1725977627237,0.38092,56665.0,56654.0,0.08825]
[1725977627437,0.08823,56667.0,56649.0,0.38]
[1725977627634,0.38,56670.0,56649.0,0.38]
[1725977627839,0.468226,56670.0,56649.0,0.38]
[1725977628032,0.468226,56670.0,56662.0,0.088236]
[1725977628230,0.38,56680.0,56655.0,0.38]
[1725977628439,0.38,56680.0,56660.0,0.08824]
[1725977628634,0.468211,56680.0,56670.0,0.088224]
[1725977628833,0.468211,56680.0,56663.0,0.05191698]
[1725977628834,0.088223,56672.0,56663.0,0.05191698]
[1725977629035,0.088223,56672.0,56653.0,0.01662661]
[1725977629036,0.3270253,56667.0,56659.0,0.05191698]
[1725977629238,0.3218,56681.0,56659.0,0.05191698]
[1725977629239,0.38,56671.0,56663.0,0.088235]
[1725977629439,0.468224,56671.0,56663.0,0.088235]
[1725977629639,0.468224,56671.0,56659.0,0.05191698]
[1725977629640,0.38,56671.0,56659.0,0.05191698]
[1725977629834,0.38,56671.0,56658.0,0.05191698]
[1725977630038,0.468224,56671.0,56664.0,0.088234]
[1725977630348,0.468224,56671.0,56656.0,0.1005]
[1725977630349,0.38,56671.0,56665.0,0.088232]
[1725977630640,0.38,56671.0,56660.0,0.05191698]
[1725977630641,0.38,56671.0,56667.0,0.088229]
[1725977631036,0.38,56676.0,56662.0,0.05191698]
[1725977631233,0.38,56676.0,56668.0,0.088228]
[1725977631234,0.31819748,56676.0,56668.0,0.088228]
[1725977631432,0.3218,56681.0,56666.0,0.05191698]
[1725977631433,0.38,56677.0,56666.0,0.05191698]
[1725977631640,0.38,56677.0,56671.0,0.088224]
[1725977632030,0.38,56677.0,56666.0,0.05191698]
[1725977632436,0.38,56677.0,56667.0,0.05191698]